fUST/lending_fUST_20240703
["ID","MTS","AMOUNT","RATE_DAILY","PERIOD"]
[331036980,1720021846098,-502.25468021,0.00014998,2]
[331036982,1720021846108,-504.32897586,0.00014998,2]
[331036983,1720021846117,-595.18933472,0.00014998,2]
[331036985,1720021846127,-500.47942956,0.00014998,2]
[331036986,1720021846136,-500.0,0.00014998,2]
[331036989,1720021846147,-506.93804387,0.00014998,2]
[331036990,1720021846156,-500.0,0.00014998,2]
[331036992,1720021846166,-500.0,0.00014998,2]
[331036994,1720021846176,-500.0,0.00014998,2]
[331036997,1720021846185,-500.0,0.00014998,2]
[331036999,1720021846194,-500.0,0.00014998,2]
[331037001,1720021846204,-500.0,0.00014998,2]
[331037004,1720021846213,-500.0,0.00014998,2]
[331037006,1720021846222,-503.34282896,0.00014998,2]
[331037009,1720021846230,-500.0,0.00014998,2]
[331037011,1720021846240,-500.0,0.00014998,2]
[331037013,1720021846249,-2038.09,0.00014998,2]
[331037015,1720021846259,-500.0,0.00014998,2]
[331037017,1720021846268,-190.73972175,0.00014998,2]
[331037019,1720021846277,-500.0,0.00014998,2]
[331037021,1720021846286,-501.70212612,0.00014998,2]
[331037023,1720021846295,-573.58008699,0.00014998,2]
[331037025,1720021846304,-500.0,0.00014998,2]
[331037027,1720021846313,-500.0,0.00014998,2]
[331037029,1720021846322,-500.0,0.00014998,2]
[331037031,1720021846333,-500.0,0.00014998,2]
[331037032,1720021846342,-789.44,0.00014998,2]
[331037034,1720021846351,-368.78620664,0.00014998,2]
[331037036,1720021846361,-500.0,0.00014998,2]
[331037038,1720021846370,-500.0,0.00014998,2]
[331037040,1720021846379,-500.0,0.00014998,2]
[331037042,1720021846388,-500.0,0.00014998,2]
[331037043,1720021846397,-503.61854143,0.00014998,2]
[331037044,1720021846406,-1267.63,0.00014998,2]
[331037045,1720021846415,-500.0,0.00014998,2]
[331037047,1720021846424,-594.28372366,0.00014998,2]
[331037049,1720021846433,-500.0,0.00014998,2]
[331037051,1720021846443,-500.0,0.00014998,2]
[331037053,1720021846452,-500.0,0.00014998,2]
[331037054,1720021846462,-500.88735226,0.00014998,2]
[331037056,1720021846471,-503.28714943,0.00014998,2]
[331037058,1720021846480,-503.47967805,0.00014998,2]
[331037060,1720021846489,-946.73,0.00014998,2]
[331037062,1720021846498,-500.0,0.00014998,2]
[331037064,1720021846507,-628.29,0.00014998,2]
[331037066,1720021846515,-500.0,0.00014998,2]
[331037068,1720021846525,-500.0,0.00014998,2]
[331037070,1720021846533,-1920.25,0.00014998,2]
[331037072,1720021846542,-500.0,0.00014998,2]
[331037074,1720021846551,-501.76310857,0.00014998,2]
[331037076,1720021846560,-500.0,0.00014998,2]
[331037078,1720021846569,-500.0,0.00014998,2]
[331037080,1720021846578,-500.0,0.00014998,2]
[331037081,1720021846587,-500.0,0.00014998,2]
[331037082,1720021846596,-500.0,0.00014998,2]
[331037083,1720021846607,-508.9847151,0.00014998,2]
[331037084,1720021846615,-500.0,0.00014998,2]
[331037085,1720021846624,-3517.93,0.00014998,2]
[331037086,1720021846633,-500.0,0.00014998,2]
[331037087,1720021846646,-500.0,0.00014998,2]
[331037088,1720021846656,-500.0,0.00014998,2]
[331037089,1720021846665,-507.72214481,0.00014998,2]
[331037090,1720021846674,-500.0,0.00014998,2]
[331037091,1720021846683,-500.0,0.00014998,2]
[331037092,1720021846693,-452.70995429,0.00014998,2]
[331037093,1720021846701,-500.0,0.00014998,2]
[331037094,1720021846710,-501.01852435,0.00014998,2]
[331037095,1720021846719,-1597.01694928,0.00014999,2]
[331037096,1720021846728,-1500.0,0.00014999,2]
[331037097,1720021846738,-789.69148627,0.00014999,2]
[331037098,1720021846747,-500.0,0.00014999,2]
[331037099,1720021846755,-500.0,0.00014999,2]
[331037100,1720021846765,-211.16139949,0.00014999,2]
[331037101,1720021846774,-500.0,0.00014999,2]
[331037102,1720021846783,-500.0,0.00014999,2]
[331037103,1720021846793,-510.31,0.00014999,2]
[331037104,1720021846802,-502.70890618,0.00014999,2]
[331037105,1720021846811,-500.0,0.00014999,2]
[331037106,1720021846820,-630.38,0.00014999,2]
[331037107,1720021846829,-500.0,0.00014999,2]
[331037108,1720021846838,-502.79954953,0.00014999,2]
[331037109,1720021846847,-506.4549912,0.00014999,2]
[331037110,1720021846858,-501.6120411,0.00014999,2]
[331037111,1720021846867,-500.0,0.00014999,2]
[331037112,1720021846876,-500.0,0.00014999,2]
[331037113,1720021846885,-500.0,0.00014999,2]
[331037114,1720021846895,-500.0,0.00014999,2]
[331037115,1720021846904,-500.0,0.00014999,2]
[331037116,1720021846916,-500.0,0.00014999,2]
[331037117,1720021846926,-500.0,0.00014999,2]
[331037118,1720021846935,-500.0,0.00014999,2]
[331037119,1720021846945,-500.0,0.00014999,2]
[331037120,1720021846954,-500.0,0.00014999,2]
[331037121,1720021846966,-500.0,0.00014999,2]
[331037122,1720021846975,-500.0,0.00014999,2]
[331037123,1720021846984,-500.0,0.00014999,2]
[331037124,1720021846995,-1232.16,0.00014999,2]
[331037125,1720021847006,-500.0,0.00014999,2]
[331037126,1720021847016,-500.0,0.00014999,2]
[331037127,1720021847025,-240.48528444,0.00014999,2]
[331037128,1720021847034,-500.0,0.00014999,2]
[331037129,1720021847043,-500.0,0.00014999,2]
[331037130,1720021847055,-1100.18,0.00014999,2]
[331037131,1720021847064,-500.0,0.00014999,2]
[331037132,1720021847073,-500.0,0.00014999,2]
[331037133,1720021847083,-500.0,0.00014999,2]
[331037134,1720021847092,-500.0,0.00014999,2]
[331037135,1720021847101,-500.0,0.00014999,2]
[331037136,1720021847117,-500.0,0.00014999,2]
[331037137,1720021847126,-500.0,0.00014999,2]
[331037138,1720021847135,-500.0,0.00014999,2]
[331037139,1720021847144,-500.0,0.00014999,2]
[331037140,1720021847156,-500.0,0.00014999,2]
[331037141,1720021847165,-500.0,0.00014999,2]
[331037142,1720021847174,-500.0,0.00014999,2]
[331037143,1720021847183,-500.0,0.00014999,2]
[331037144,1720021847192,-500.0,0.00014999,2]
[331037145,1720021847200,-500.0,0.00014999,2]
[331037146,1720021847209,-500.0,0.00014999,2]
[331037147,1720021847218,-500.0,0.00014999,2]
[331037148,1720021847227,-500.0,0.00014999,2]
[331037149,1720021847235,-500.0,0.00014999,2]
[331037150,1720021847244,-500.0,0.00014999,2]
[331037151,1720021847253,-500.0,0.00014999,2]
[331037152,1720021847262,-500.0,0.00014999,2]
[331037153,1720021847271,-500.0,0.00014999,2]
[331037154,1720021847280,-500.0,0.00014999,2]
[331037155,1720021847288,-500.0,0.00014999,2]
[331037156,1720021847298,-500.0,0.00014999,2]
[331037157,1720021847306,-500.0,0.00014999,2]
[331037158,1720021847315,-500.0,0.00014999,2]
[331037159,1720021847325,-500.0,0.00014999,2]
[331037160,1720021847334,-501.76200654,0.00014999,2]
[331037161,1720021847343,-582.37932952,0.00014999,2]
[331037162,1720021847351,-501.154048,0.00014999,2]
[331037163,1720021847364,-500.0,0.00014999,2]
[331037164,1720021847373,-562.27958098,0.00014999,2]
[331037165,1720021847383,-501.77974192,0.00014999,2]
[331037166,1720021847392,-500.0,0.00014999,2]
[331037167,1720021847401,-433.32571613,0.00014999,2]
[331037168,1720021847410,-417.15974901,0.00015,2]
[331037169,1720021847419,-580.73687143,0.00015035,2]
[331037170,1720021847429,-500.0,0.00015035,2]
[331037171,1720021847439,-313192.890249,0.00015126,2]
[331037172,1720021847451,-500.0,0.00015135,2]
[331037173,1720021847461,-500.0,0.00015135,2]
[331037174,1720021847470,-500.0,0.00015135,2]
[331037175,1720021847479,-515.73765578,0.00015135,2]
[331037176,1720021847488,-500.0,0.00015135,2]
[331037177,1720021847498,-1920.25,0.00015135,2]
[331037178,1720021847508,-500.0,0.00015135,2]
[331037179,1720021847518,-500.0,0.00015136,2]
[331037180,1720021847527,-500.0,0.00015136,2]
[331037181,1720021847537,-500.0,0.00015136,2]
[331037182,1720021847550,-571.87707827,0.00015136,2]
[331037183,1720021847558,-500.0,0.00015136,2]
[331037184,1720021847567,-500.0,0.00015136,2]
[331037185,1720021847577,-500.0,0.00015136,2]
[331037186,1720021847586,-500.0,0.00015136,2]
[331037187,1720021847595,-1056.31,0.00015136,2]
[331037188,1720021847607,-500.0,0.00015136,2]
[331037189,1720021847615,-500.0,0.00015136,2]
[331037190,1720021847624,-500.0,0.00015136,2]
[331037191,1720021847633,-500.0,0.00015136,2]
[331037192,1720021847642,-500.0,0.00015136,2]
[331037193,1720021847651,-500.0,0.00015136,2]
[331037194,1720021847660,-500.0,0.00015136,2]
[331037195,1720021847669,-222.72005173,0.00015136,2]
[331037196,1720021847678,-500.0,0.00015136,2]
[331037197,1720021847687,-500.0,0.00015136,2]
[331037198,1720021847695,-267.47246558,0.00015136,2]
[331037199,1720021847705,-500.0,0.00015136,2]
[331037200,1720021847714,-1686.8,0.00015136,2]
[331037201,1720021847723,-368.49000664,0.00015136,2]
[331037202,1720021847731,-505.54,0.00015136,2]
[331037203,1720021847740,-170.38797,0.00015136,2]
[331037204,1720021847750,-500.0,0.00015136,2]
[331037205,1720021847759,-500.0,0.00015136,2]
[331037206,1720021847768,-500.0,0.00015136,2]
[331037207,1720021847777,-500.0,0.00015136,2]
[331037208,1720021847894,-492.25699588,0.00015136,2]
[331037209,1720021847904,-500.0,0.00015136,2]
[331037210,1720021847914,-520.43593713,0.00015136,2]
[331037211,1720021847928,-500.0,0.00015136,2]
[331037212,1720021847937,-500.0,0.00015136,2]
[331037213,1720021847946,-500.0,0.00015136,2]
[331037214,1720021847955,-500.0,0.00015136,2]
[331037215,1720021847966,-534.01692734,0.00015136,2]
[331037216,1720021847975,-500.0,0.00015136,2]
[331037217,1720021847984,-376.95860838,0.00015136,2]
[331037218,1720021847995,-602.13426576,0.00015136,2]
[331037219,1720021848005,-500.0,0.00015136,2]
[331037220,1720021848015,-500.0,0.00015136,2]
[331037221,1720021848024,-500.0,0.00015136,2]
[331037222,1720021848034,-502.74805194,0.00015136,2]
[331037223,1720021848043,-501.38330414,0.00015136,2]
[331037224,1720021848053,-502.19130451,0.00015136,2]
[331037225,1720021848062,-230.4879824,0.00015136,2]
[331037226,1720021848071,-500.0,0.00015136,2]
[331037227,1720021848080,-500.0,0.00015136,2]
[331037228,1720021848089,-502.0409183,0.00015136,2]
[331037229,1720021848098,-500.0,0.00015136,2]
[331037230,1720021848109,-500.0,0.00015136,2]
[331037231,1720021848118,-500.0,0.00015136,2]
[331037232,1720021848127,-176.7332694,0.00015136,2]
[331037233,1720021848136,-500.0,0.00015136,2]
[331037234,1720021848146,-510.49143922,0.00015136,2]
[331037235,1720021848155,-500.0,0.00015136,2]
[331037236,1720021848163,-500.8386807,0.00015136,2]
[331037237,1720021848172,-500.0,0.00015136,2]
[331037238,1720021848181,-529.00778464,0.00015136,2]
[331037239,1720021848190,-500.0,0.00015136,2]
[331037240,1720021848199,-502.57772511,0.00015136,2]
[331037241,1720021848208,-613.49913843,0.00015136,2]
[331037242,1720021848217,-976.04853737,0.00015136,2]
[331037243,1720021848226,-500.0,0.00015136,2]
[331037244,1720021848235,-500.0,0.00015136,2]
[331037245,1720021848244,-500.0,0.00015136,2]
[331037246,1720021848253,-500.0,0.00015136,2]
[331037247,1720021848262,-258.14972012,0.00015136,2]
[331037248,1720021848271,-500.0,0.00015136,2]
[331037249,1720021848280,-500.0,0.00015136,2]
[331037250,1720021848289,-500.0,0.00015136,2]
[331037251,1720021848298,-500.0,0.00015136,2]
[331037252,1720021848309,-500.0,0.00015136,2]
[331037253,1720021848318,-500.0,0.00015136,2]
[331037254,1720021848327,-500.0,0.00015136,2]
[331037255,1720021848336,-500.0,0.00015136,2]
[331037256,1720021848345,-500.0,0.00015136,2]
[331037257,1720021848354,-500.0,0.00015136,2]
[331037258,1720021848364,-548.86048589,0.00015136,2]
[331037259,1720021848373,-261.90542427,0.00015136,2]
[331037260,1720021848382,-500.0,0.00015136,2]
[331037261,1720021848392,-507.06743236,0.00015136,2]
[331037262,1720021848401,-501.03407014,0.00015136,2]
[331037263,1720021848410,-500.0,0.00015136,2]
[331037264,1720021848419,-500.0,0.00015136,2]
[331037265,1720021848428,-500.0,0.00015136,2]
[331037266,1720021848437,-455.44182653,0.00015136,2]
[331037267,1720021848446,-500.0,0.00015136,2]
[331037268,1720021848454,-500.0,0.00015136,2]
[331037269,1720021848463,-500.0,0.00015136,2]
[331037270,1720021848472,-500.0,0.00015136,2]
[331037271,1720021848481,-501.86604317,0.00015136,2]
[331037272,1720021848490,-500.0,0.00015136,2]
[331037273,1720021848499,-500.0,0.00015136,2]
[331037274,1720021848508,-500.0,0.00015136,2]
[331037275,1720021848517,-555.37792858,0.00015136,2]
[331037276,1720021848526,-500.0,0.00015136,2]
[331037277,1720021848535,-500.0,0.00015136,2]
[331037278,1720021848544,-500.0,0.00015136,2]
[331037279,1720021848554,-500.0,0.00015136,2]
[331037280,1720021848563,-500.0,0.00015136,2]
[331037281,1720021848571,-500.0,0.00015136,2]
[331037282,1720021848580,-500.0,0.00015136,2]
[331037283,1720021848589,-500.0,0.00015136,2]
[331037284,1720021848599,-517.80974259,0.00015136,2]
[331037285,1720021848608,-395.6025926,0.00015136,2]
[331037286,1720021848617,-500.0,0.00015136,2]
[331037287,1720021848626,-500.0,0.00015136,2]
[331037288,1720021848635,-501.42718414,0.00015136,2]
[331037289,1720021848643,-501.34797885,0.00015136,2]
[331037290,1720021848652,-501.29283934,0.00015136,2]
[331037291,1720021848661,-505.29092079,0.00015136,2]
[331037292,1720021848670,-500.0,0.00015136,2]
[331037293,1720021848679,-500.0,0.00015136,2]
[331037294,1720021848688,-500.0,0.00015136,2]
[331037295,1720021848699,-500.0,0.00015136,2]
[331037296,1720021848708,-501.62507336,0.00015136,2]
[331037297,1720021848717,-527.24269565,0.00015136,2]
[331037298,1720021848726,-500.0,0.00015136,2]
[331037299,1720021848736,-500.0,0.00015136,2]
[331037300,1720021848745,-500.0,0.00015136,2]
[331037301,1720021848754,-583.71942751,0.00015136,2]
[331037302,1720021848763,-258.38539651,0.00015136,2]
[331037303,1720021848772,-500.0,0.00015136,2]
[331037304,1720021848781,-500.0,0.00015136,2]
[331037305,1720021848790,-502.55567626,0.00015136,2]
[331037306,1720021848799,-500.0,0.00015136,2]
[331037307,1720021848808,-500.0,0.00015136,2]
[331037308,1720021848816,-500.0,0.00015136,2]
[331037309,1720021848826,-395.08305904,0.00015136,2]
[331037310,1720021848835,-500.0,0.00015136,2]
[331037311,1720021848844,-506.08957986,0.00015136,2]
[331037312,1720021848853,-500.0,0.00015136,2]
[331037313,1720021848863,-500.0,0.00015136,2]
[331037314,1720021848871,-500.0,0.00015136,2]
[331037315,1720021848880,-225.64245517,0.00015136,2]
[331037316,1720021848889,-500.0,0.00015262,2]
[331037317,1720021848898,-199.52490855,0.0001527,2]
[331037318,1720021848908,-249.81943404,0.00015271,2]
[331037319,1720021848922,-500.0,0.00015271,2]
[331037320,1720021848931,-500.0,0.00015271,2]
[331037321,1720021848940,-500.0,0.00015271,2]
[331037322,1720021848949,-500.0,0.00015271,2]
[331037323,1720021848960,-500.0,0.00015271,2]
[331037324,1720021848969,-500.0,0.00015271,2]
[331037325,1720021848979,-500.0,0.00015271,2]
[331037326,1720021848988,-501.32227773,0.00015271,2]
[331037327,1720021848998,-500.0,0.00015271,2]
[331037328,1720021849008,-500.0,0.00015271,2]
[331037329,1720021849017,-500.0,0.00015271,2]
[331037330,1720021849026,-500.0,0.00015271,2]
[331037331,1720021849036,-500.0,0.00015271,2]
[331037332,1720021849045,-500.0,0.00015271,2]
[331037333,1720021849056,-500.0,0.00015271,2]
[331037334,1720021849065,-500.0,0.00015271,2]
[331037335,1720021849074,-500.0,0.00015271,2]
[331037336,1720021849084,-500.0,0.00015271,2]
[331037337,1720021849093,-838.7,0.00015271,2]
[331037338,1720021849102,-500.0,0.00015271,2]
[331037339,1720021849112,-500.0,0.00015271,2]
[331037340,1720021849122,-500.0,0.00015271,2]
[331037341,1720021849131,-500.0,0.00015271,2]
[331037342,1720021849140,-500.0,0.00015271,2]
[331037343,1720021849149,-500.0,0.00015271,2]
[331037344,1720021849159,-8443.31,0.00015271,2]
[331037345,1720021849168,-500.0,0.00015271,2]
[331037346,1720021849177,-500.0,0.00015271,2]
[331037347,1720021849186,-866.09,0.00015271,2]
[331037348,1720021849195,-500.0,0.00015271,2]
[331037349,1720021849205,-500.0,0.00015272,2]
[331037350,1720021849214,-500.0,0.00015272,2]
[331037351,1720021849223,-4395.66,0.00015272,2]
[331037352,1720021849232,-500.0,0.00015272,2]
[331037353,1720021849241,-500.0,0.00015272,2]
[331037354,1720021849250,-500.0,0.00015272,2]
[331037355,1720021849259,-500.0,0.00015272,2]
[331037356,1720021849269,-500.0,0.00015272,2]
[331037357,1720021849278,-500.0,0.00015272,2]
[331037358,1720021849287,-500.0,0.00015272,2]
[331037359,1720021849296,-500.0,0.00015272,2]
[331037360,1720021849306,-500.0,0.00015272,2]
[331037361,1720021849315,-500.0,0.00015272,2]
[331037362,1720021849325,-2038.09,0.00015272,2]
[331037363,1720021849334,-615.7599259,0.00015272,2]
[331037364,1720021849344,-500.0,0.00015272,2]
[331037365,1720021849353,-500.0,0.00015272,2]
[331037366,1720021849364,-503.04300736,0.00015272,2]
[331037367,1720021849373,-500.0,0.00015272,2]
[331037368,1720021849383,-789.44,0.00015272,2]
[331037369,1720021849391,-500.0,0.00015272,2]
[331037370,1720021849400,-500.0,0.00015272,2]
[331037371,1720021849409,-505.76187946,0.00015272,2]
[331037372,1720021849418,-500.0,0.00015272,2]
[331037373,1720021849428,-1267.63,0.00015272,2]
[331037374,1720021849437,-500.0,0.00015272,2]
[331037375,1720021849447,-179.50099273,0.00015272,2]
[331037376,1720021849456,-500.0,0.00015272,2]
[331037377,1720021849465,-536.7234093,0.00015272,2]
[331037378,1720021849475,-946.73,0.00015272,2]
[331037379,1720021849484,-500.0,0.00015272,2]
[331037380,1720021849494,-628.29,0.00015272,2]
[331037381,1720021849503,-580.61,0.00015272,2]
[331037382,1720021849512,-500.0,0.00015272,2]
[331037383,1720021849522,-500.0,0.00015272,2]
[331037384,1720021849531,-500.0,0.00015272,2]
[331037385,1720021849540,-500.0,0.00015272,2]
[331037386,1720021849550,-500.0,0.00015272,2]
[331037387,1720021849558,-500.0,0.00015272,2]
[331037388,1720021849567,-500.0,0.00015272,2]
[331037389,1720021849576,-3517.93,0.00015272,2]
[331037390,1720021849585,-500.0,0.00015272,2]
[331037391,1720021849594,-506.61282163,0.00015272,2]
[331037392,1720021849604,-500.0,0.00015272,2]
[331037393,1720021849618,-506.97182283,0.00015272,2]
[331037394,1720021849628,-360.20873027,0.00015272,2]
[331037395,1720021849637,-212.05283521,0.00015273,2]
[331037396,1720021849646,-500.0,0.00015273,2]
[331037397,1720021849655,-510.31,0.00015273,2]
[331037398,1720021849665,-500.0,0.00015273,2]
[331037399,1720021849674,-630.38,0.00015273,2]
[331037400,1720021849683,-500.0,0.00015273,2]
[331037401,1720021849692,-500.0,0.00015273,2]
[331037402,1720021849701,-500.0,0.00015273,2]
[331037403,1720021849711,-500.0,0.00015273,2]
[331037404,1720021849720,-500.0,0.00015273,2]
[331037405,1720021849729,-500.0,0.00015273,2]
[331037406,1720021849739,-500.0,0.00015273,2]
[331037407,1720021849748,-500.0,0.00015273,2]
[331037408,1720021849757,-500.0,0.00015273,2]
[331037409,1720021849766,-500.0,0.00015273,2]
[331037410,1720021849776,-500.0,0.00015273,2]
[331037411,1720021849785,-534.614043,0.00015273,2]
[331037412,1720021849795,-1232.16,0.00015273,2]
[331037413,1720021849804,-500.0,0.00015273,2]
[331037414,1720021849813,-500.0,0.00015273,2]
[331037415,1720021849823,-500.0,0.00015273,2]
[331037416,1720021849832,-500.0,0.00015273,2]
[331037417,1720021849841,-1100.18,0.00015273,2]
[331037418,1720021849851,-500.0,0.00015273,2]
[331037419,1720021849863,-504.93741519,0.00015273,2]
[331037420,1720021849871,-500.0,0.00015273,2]
[331037421,1720021849880,-500.0,0.00015273,2]
[331037422,1720021849889,-500.0,0.00015273,2]
[331037423,1720021849900,-500.0,0.00015273,2]
[331037424,1720021849910,-500.0,0.00015273,2]
[331037425,1720021849923,-500.0,0.00015273,2]
[331037426,1720021849932,-500.0,0.00015273,2]
[331037427,1720021849941,-500.0,0.00015273,2]
[331037428,1720021849950,-500.0,0.00015273,2]
[331037429,1720021849961,-500.0,0.00015273,2]
[331037430,1720021849970,-279.14200376,0.00015273,2]
[331037431,1720021849979,-500.0,0.00015273,2]
[331037432,1720021849988,-500.0,0.00015273,2]
[331037433,1720021850000,-500.0,0.00015273,2]
[331037434,1720021850009,-500.0,0.00015273,2]
[331037435,1720021850018,-500.0,0.00015273,2]
[331037436,1720021850028,-500.0,0.00015273,2]
[331037437,1720021850038,-500.0,0.00015273,2]
[331037438,1720021850048,-500.0,0.00015273,2]
[331037439,1720021850058,-500.0,0.00015273,2]
[331037440,1720021850067,-500.0,0.00015273,2]
[331037441,1720021850076,-500.0,0.00015273,2]
[331037442,1720021850085,-500.0,0.00015273,2]
[331037443,1720021850094,-151.0,0.00015273,2]
[331037444,1720021850103,-151.0,0.00015273,2]
[331037445,1720021850115,-500.0,0.00015273,2]
[331037446,1720021850124,-151.0,0.00015273,2]
[331037447,1720021850133,-151.0,0.00015273,2]
[331037448,1720021850142,-229.146789,0.00015273,2]
[331037449,1720021850151,-151.0,0.00015273,2]
[331037450,1720021850160,-229.146789,0.00015273,2]
[331037451,1720021850170,-500.0,0.00015273,2]
[331037452,1720021850179,-102711.0,0.000153,2]
[331037453,1720021850188,-265.790419,0.000153,2]
[331037454,1720021850197,-151.0,0.000153,2]
[331037455,1720021850206,-151.0,0.000153,2]
[331037456,1720021850217,-151.0,0.000153,2]
[331037457,1720021850226,-151.0,0.000153,2]
[331037458,1720021850236,-559.108345,0.000153,2]
[331037459,1720021850245,-559.108345,0.000153,2]
[331037460,1720021850256,-151.0,0.000153,2]
[331037461,1720021850265,-229.146789,0.000153,2]
[331037462,1720021850274,-151.0,0.000153,2]
[331037463,1720021850283,-229.146789,0.000153,2]
[331037464,1720021850292,-647.09208893,0.00015309,2]
[331037465,1720021850301,-368.247161,0.0001539,2]
[331037466,1720021850310,-368.247161,0.0001539,2]
[331037467,1720021850319,-1444.836265,0.0001539,2]
[331037468,1720021850328,-1444.836265,0.0001539,2]
[331037469,1720021850337,-151.0,0.0001539,2]
[331037470,1720021850346,-1243.73,0.00015391,2]
[331037471,1720021850354,-608.68,0.00015391,2]
[331037472,1720021850366,-500.0,0.00015391,2]
[331037473,1720021850375,-500.0,0.00015391,2]
[331037474,1720021850384,-3312.17,0.00015391,2]
[331037475,1720021850393,-3312.17,0.00015391,2]
[331037476,1720021850402,-3312.17,0.00015391,2]
[331037477,1720021850412,-3312.17,0.00015391,2]
[331037478,1720021850421,-500.0,0.00015391,2]
[331037479,1720021850430,-1469.96,0.00015391,2]
[331037480,1720021850439,-500.0,0.000154,2]
[331037481,1720021850448,-500.0,0.000154,2]
[331037482,1720021850457,-500.0,0.000154,2]
[331037483,1720021850467,-500.0,0.000154,2]
[331037484,1720021850476,-500.0,0.000154,2]
[331037485,1720021850485,-500.0,0.000154,2]
[331037486,1720021850581,-500.0,0.000154,2]
[331037487,1720021850602,-500.0,0.000154,2]
[331037488,1720021850612,-500.0,0.000154,2]
[331037489,1720021850621,-500.0,0.000154,2]
[331037490,1720021850630,-500.0,0.000154,2]
[331037491,1720021850640,-500.0,0.000154,2]
[331037492,1720021850649,-500.0,0.000154,2]
[331037493,1720021850658,-500.0,0.000154,2]
[331037494,1720021850667,-322.1666562,0.000154,2]
[331037495,1720021850676,-1920.25,0.000154,2]
[331037496,1720021850685,-1920.25,0.000154,2]
[331037497,1720021850694,-1920.25,0.000154,2]
[331037498,1720021850704,-1920.25,0.000154,2]
[331037499,1720021850714,-1920.25,0.000154,2]
[331037500,1720021850724,-1920.25,0.000154,2]
[331037501,1720021850733,-1920.25,0.000154,2]
[331037502,1720021850744,-1920.25,0.000154,2]
[331037503,1720021850753,-500.0,0.00015407,2]
[331037504,1720021850763,-3312.17,0.00015408,2]
[331037505,1720021850773,-500.0,0.00015409,2]
[331037506,1720021850784,-511.4836172,0.00015409,2]
[331037507,1720021850794,-500.0,0.00015409,2]
[331037508,1720021850804,-500.0,0.00015409,2]
[331037509,1720021850814,-500.0,0.00015409,2]
[331037510,1720021850823,-500.0,0.0001541,2]
[331037511,1720021850832,-500.0,0.0001541,2]
[331037512,1720021850842,-500.0,0.0001541,2]
[331037513,1720021850851,-500.0,0.0001541,2]
[331037514,1720021850861,-500.0,0.0001541,2]
[331037515,1720021850870,-1056.31,0.0001541,2]
[331037516,1720021850879,-274.38988747,0.0001541,2]
[331037517,1720021850889,-500.0,0.0001541,2]
[331037518,1720021850898,-500.0,0.0001541,2]
[331037519,1720021850908,-500.0,0.0001541,2]
[331037520,1720021850920,-500.0,0.0001541,2]
[331037521,1720021850929,-500.0,0.0001541,2]
[331037522,1720021850939,-1686.8,0.0001541,2]
[331037523,1720021850948,-505.54,0.0001541,2]
[331037524,1720021850958,-500.0,0.0001541,2]
[331037525,1720021850967,-500.0,0.0001541,2]
[331037526,1720021850976,-500.0,0.0001541,2]
[331037527,1720021850985,-500.0,0.0001541,2]